fUSD/lending_fUSD_20250404
["ID","MTS","AMOUNT","RATE_DAILY","PERIOD"]
[357147966,1743794737149,-150.0,0.00016,2]
[357147967,1743794739695,-150.0,0.00016,2]
[357147968,1743794749206,-224.6051,0.00034931,7]
[357147969,1743794753991,-300.0,0.00034931,7]
[357147970,1743794757451,-171.0647004,0.00016,2]
[357147971,1743794760103,-150.0,0.00016,2]
[357147972,1743794762459,-164.58300598,0.00016,2]
[357147973,1743794826068,-150.0,0.0001592,2]
[357147974,1743794826092,-61.5580366,0.00015999,2]
[357147975,1743794853644,5915.0,0.00022852,120]
[357147976,1743794854107,5915.0,0.00022842,120]
[357147977,1743794854141,-238.4419634,0.00015999,2]
[357147978,1743794854165,-6406.28664086,0.00016,2]
[357147979,1743794854571,5915.0,0.00022832,120]
[357147980,1743794855441,-206.04137996,0.00016,2]
[357147981,1743794879927,3686.62851723,0.0001,2]
[357147982,1743794883738,496313.37148277,0.00015,2]
[357147983,1743794883764,23449.23056072,0.00015,2]
[357147984,1743794883949,-154.09630242,0.00016,2]
[357147985,1743794886283,-171.04350908,0.00016,2]
[357147986,1743794890626,150.0,0.00035931,30]
[357147987,1743794902173,-150.0,0.00016,2]
[357147988,1743794904623,-164.99533911,0.000159,2]
[357147989,1743794915946,-252.60407745,0.000159,2]
[357147990,1743794915970,-5.09465117,0.00016,2]
[357147991,1743794939413,-150.0,0.0001592,2]
[357147992,1743794943353,-150.0,0.0001592,2]
[357147993,1743794951138,-443.737577,0.0001592,2]
[357147994,1743794951160,-300.0,0.00015999,2]
[357147995,1743794951181,-6619.44835142,0.00016,2]
[357147996,1743794951202,-7869.61973936,0.00016,2]
[357147997,1743794951223,-200.0,0.0001634,2]
[357147998,1743794951245,-420.0,0.00017492,2]
[357147999,1743794951266,-250.0,0.000176,2]
[357148000,1743794951288,-250.0,0.000176,2]
[357148001,1743794951311,-250.0,0.0001795,2]
[357148002,1743794951332,-1143.60048279,0.00018,2]
[357148003,1743794951352,-631.92259442,0.000181,2]
[357148004,1743794951523,-587.0,0.00019125,2]
[357148005,1743794951547,-157.59088072,0.000199,2]
[357148006,1743794951567,-212.10784809,0.000199,3]
[357148007,1743794951590,-15124.69547342,0.000199,2]
[357148008,1743794956129,-466.78580916,0.000199,2]
[357148009,1743794956150,-174.79938507,0.000199,2]
[357148010,1743794956171,-340.99428571,0.00019949,2]
[357148011,1743794956191,-3761.743128,0.0001995,2]
[357148012,1743794956212,-500.0,0.00019973,2]
[357148013,1743794956232,-300.0,0.00019999,2]
[357148014,1743794956255,-5354.63455263,0.0002,2]
[357148015,1743794957096,-9917.78257323,0.0002,2]
[357148016,1743794960134,-8004.03289,0.0002,2]
[357148017,1743794962101,-6104.02990361,0.0002,2]
[357148018,1743794963092,-155.25216315,0.000199,2]
[357148019,1743794963116,-17045.80583685,0.0002,2]
[357148020,1743794967119,-2977.42648216,0.0002,2]
[357148021,1743794967153,-4414.75643,0.0002,2]
[357148022,1743794973525,4140.0,0.000227,120]
[357148023,1743794973998,4140.0,0.0002269,120]
[357148024,1743794974457,4140.0,0.0002268,120]
[357148030,1743795022398,-300.0,0.000198,2]
[357148031,1743795022423,-221.65743284,0.000199,2]
[357148032,1743795022450,-52587.61639947,0.0001999,2]
[357148033,1743795022484,-276890.72616769,0.0002,2]
[357148040,1743795031822,-174.04399391,0.000199,2]
[357148041,1743795031832,-188.09187883,0.000199,2]
[357148042,1743795031841,-212.10784808,0.000199,3]
[357148043,1743795031850,-11382.36802067,0.0002,2]
[357148044,1743795031871,-1286.9726,0.0002,2]
[357148045,1743795031882,-419.48808194,0.0002,2]
[357148046,1743795031892,-338679.77378478,0.0002,2]
[357148055,1743795037472,-2445.08324015,0.0002,2]
[357148060,1743795037594,-2639.72490357,0.0002,2]
[357148061,1743795037652,-2340131.83196847,0.0002,2]
[357148062,1743795037664,-1106205.18245178,0.0002,2]
[357148063,1743795037674,-149061.11915471,0.0002,4]
[357148064,1743795037684,-6333.11514876,0.0002,4]
[357148065,1743795037693,-1013.0,0.0002,6]
[357148066,1743795037703,-2000.0,0.0002,4]
[357148067,1743795037713,-150.57,0.0002,2]
[357148068,1743795037723,-150.57,0.0002,2]
[357148069,1743795037733,-150.57,0.0002,2]
[357148070,1743795037743,-150.57,0.0002,2]
[357148071,1743795037753,-150.57,0.0002,2]
[357148072,1743795037762,-150.57,0.0002,2]
[357148073,1743795037772,-150.57,0.0002,2]
[357148074,1743795037783,-150.57,0.0002,2]
[357148075,1743795037792,-150.57,0.0002,2]
[357148076,1743795037802,-150.57,0.0002,2]
[357148077,1743795037811,-150.57,0.0002,2]
[357148078,1743795037833,-150.57,0.0002,2]
[357148079,1743795037844,-150.57,0.0002,2]
[357148080,1743795037854,-150.57,0.0002,2]
[357148081,1743795037865,-150.57,0.0002,2]
[357148082,1743795037875,-150.57,0.0002,2]
[357148083,1743795037885,-150.57,0.0002,2]
[357148084,1743795037896,-150.57,0.0002,2]
[357148085,1743795037906,-150.57,0.0002,2]
[357148086,1743795037916,-150.57,0.0002,2]
[357148087,1743795037926,-150.57,0.0002,2]
[357148088,1743795037936,-1668.61138415,0.0002015,2]
[357148090,1743795037947,-1150.94361889,0.00021,2]
[357148093,1743795037957,-189.95753276,0.00021,2]
[357148095,1743795037966,-250.0,0.00021989,2]
[357148097,1743795037976,-503.65607221,0.0002271,2]
[357148099,1743795037987,-402.01720887,0.0002301,2]
[357148101,1743795037997,-2269.28030699,0.0002361,7]
[357148103,1743795038007,-10000.00995351,0.00024,5]
[357148105,1743795038017,-150.57,0.0002479,2]
[357148107,1743795038027,-150.57,0.0002479,2]
[357148109,1743795038036,-634.70901779,0.00024799,2]
[357148111,1743795038046,-307644.26605,0.000248,3]
[357148113,1743795038055,-150.57,0.0002489,2]
[357148115,1743795038064,-191380.137253,0.000249,3]
[357148117,1743795038074,-155.25216315,0.0002521,2]
[357148119,1743795038083,-2526.87986563,0.00026,2]
[357148121,1743795038092,-608.07,0.00026,2]
[357148123,1743795038102,-210.57,0.00026145,2]
[357148125,1743795038111,-152.29444619,0.00026649,2]
[357148127,1743795038120,-162.70196803,0.00026749,2]
[357148129,1743795038129,-156.69,0.00026849,2]
[357148131,1743795038140,-188.08,0.00028984,2]
[357148133,1743795038149,-1773.49,0.00029009,2]
[357148135,1743795038159,-7000.0,0.0003,10]
[357148137,1743795038168,-2000.0,0.0003,4]
[357148139,1743795038178,-155.25216315,0.00030521,2]
[357148141,1743795038187,-36267.62978265,0.00033,2]
[357148143,1743795038198,-75.64502362,0.00034931,7]
[357148146,1743795038207,-600.25012357,0.00034931,7]
[357148147,1743795038217,-166.46,0.00035,2]
[357148149,1743795038225,-174.79938505,0.0003545,2]
[357148151,1743795038235,-221.65743282,0.0003545,2]
[357148154,1743795038245,-155.25216315,0.00035831,2]
[357148156,1743795038254,-457.4651,0.0003589,10]
[357148158,1743795038268,-150.57,0.00035921,2]
[357148160,1743795038277,-12745.79184101,0.00035931,2]
[357148162,1743795038287,-13194.97025546,0.00035931,2]
[357148164,1743795038296,-774.93463317,0.00035931,2]
[357148166,1743795038306,-26341.16568976,0.00035931,2]
[357148168,1743795038315,-4500.6139552,0.00035931,2]
[357148170,1743795038325,-1831.53795679,0.00035931,2]
[357148172,1743795038334,-1114.47291273,0.00035931,2]
[357148174,1743795038343,-219.6795429,0.00035931,2]
[357148176,1743795038353,-14024.38122074,0.00035931,2]
[357148177,1743795038361,-10169.50182171,0.00035931,2]
[357148178,1743795038370,-8119.98566091,0.00035931,2]
[357148179,1743795038379,-1700.72788556,0.00035931,2]
[357148180,1743795038388,-1426.47347248,0.00035931,2]
[357148181,1743795038397,-202.135095,0.00035931,2]
[357148182,1743795038406,-281.80327086,0.00035931,2]
[357148183,1743795038415,-5665.63032446,0.00035931,2]
[357148184,1743795038424,-1010.15730967,0.00035931,2]
[357148185,1743795038431,-749.38309023,0.00035931,2]
[357148186,1743795038439,-1103.17899418,0.00035931,2]
[357148187,1743795038448,-162.91,0.00035931,2]
[357148188,1743795038457,-161.196318,0.00035931,2]
[357148189,1743795038466,-2166.20115308,0.00035931,2]
[357148190,1743795038474,-150.0,0.00035931,2]
[357148191,1743795038483,-307.39207949,0.00035931,2]
[357148193,1743795038495,-150.0,0.00035931,2]
[357148194,1743795038504,-500.0,0.00036,5]
[357148196,1743795038514,-500.0,0.00036,5]
[357148198,1743795038524,-156.69,0.00036862,2]
[357148200,1743795038534,-600.25012357,0.00037099,9]
[357148202,1743795038544,-818.63680801,0.000372,103]
[357148204,1743795038553,-818.63680798,0.000372,103]
[357148206,1743795038562,-818.63680798,0.000372,103]
[357148208,1743795038572,-165.28,0.0003828,2]
[357148210,1743795038581,-2045.14206925,0.00039,120]
[357148212,1743795038591,-588.43343924,0.0004,2]
[357148214,1743795038602,-261.45805039,0.0004,2]
[357148216,1743795038612,-403.48541538,0.0004,30]
[357148218,1743795038621,-5773.8280671,0.0004,30]
[357148220,1743795038630,-1724.7965852,0.0004,4]
[357148222,1743795038640,-500.0,0.00040466,2]
[357148224,1743795038650,-18696.48230532,0.0004048,10]
[357148226,1743795038659,-450.0,0.000405,5]
[357148229,1743795038672,-501.42177442,0.0004136,10]
[357148231,1743795038682,-509.99994119,0.0004136,5]
[357148233,1743795038691,-501.63481894,0.0004136,10]
[357148235,1743795038701,-500.0,0.0004136,10]
[357148237,1743795038711,-498.59041,0.00041479,10]
[357148239,1743795038722,-1000.0,0.00041479,10]
[357148241,1743795038731,-818.63680798,0.0004155,120]
[357148243,1743795038743,-600.25012357,0.00042324,14]
[357148245,1743795038753,-474.47,0.00042855,2]
[357148247,1743795038764,-62375.33319443,0.00043,10]
[357148249,1743795038774,-150.0,0.00043086,7]
[357148251,1743795038784,-154.87,0.000436,36]
[357148253,1743795038794,-150.57,0.0004479,2]
[357148255,1743795038804,-1066.0,0.00044798,30]
[357148257,1743795038813,-212912.9,0.000448,60]
[357148259,1743795038826,-4601.29,0.000448,14]
[357148261,1743795038837,-150.57,0.0004499,2]
[357148263,1743795038847,-150.57,0.0004499,2]
[357148265,1743795038856,-150.57,0.0004499,2]
[357148267,1743795038866,-150.57,0.0004499,2]
[357148269,1743795038878,-810.00571429,0.00045,120]
[357148271,1743795038887,-151.0,0.00045,120]
[357148273,1743795038898,-688894.90790597,0.00045,2]
[357148275,1743795038908,-2157.06809181,0.00045,2]
[357148277,1743795038918,-151.0,0.00045,14]
[357148279,1743795038927,-151.0,0.00045,14]
[357148281,1743795038937,-645.991304,0.00045,14]
[357148283,1743795038947,-151.0,0.00045,14]
[357148286,1743795038957,-645.991304,0.00045,14]
[357148288,1743795038966,-152.627127,0.00045,14]
[357148290,1743795038975,-151.0,0.00045,14]
[357148292,1743795038985,-152.604705,0.00045,14]
[357148293,1743795038996,-1743.0,0.000455,2]
[357148296,1743795039007,-4261.81069932,0.000455,120]
[357148297,1743795039016,-854.05,0.00045708,2]
[357148299,1743795039026,-731.78991961,0.00046387,2]
[357148301,1743795039035,-154.87,0.000464,39]
[357148303,1743795039045,-154.87,0.000464,39]
[357148306,1743795039055,-156.69,0.00046874,2]
[357148308,1743795039066,-538.999999,0.00047,15]
[357148310,1743795039076,-1284.0,0.00047015,2]
[357148312,1743795039086,-1066.0,0.00047156,30]
[357148314,1743795039095,-600.25012357,0.00047549,19]
[357148316,1743795039105,-150.57,0.0004769,2]
[357148317,1743795039115,-150.57,0.0004769,2]
[357148319,1743795039124,-150.4,0.00047697,2]
[357148321,1743795039133,-212912.9,0.000477,60]
[357148323,1743795039143,-4601.29,0.000477,14]
[357148324,1743795039152,-1633.47084222,0.00047714,2]
[357148325,1743795039162,-152.82,0.0004789,30]
[357148326,1743795039171,-174.7,0.0004789,30]
[357148327,1743795039180,-888.31,0.0004789,30]
[357148328,1743795039190,-854.05,0.00047972,2]
[357148329,1743795039199,-500.0,0.00048,30]
[357148330,1743795039209,-1751.60466713,0.00048,2]
[357148331,1743795039218,-23900.0,0.00048017,2]
[357148332,1743795039227,-250.0,0.00048086,120]
[357148333,1743795039239,-156.44,0.0004811,120]
[357148334,1743795039248,-421.043,0.00048135,82]
[357148335,1743795039257,-2058.94429272,0.000482,120]
[357148336,1743795039267,-1743.0,0.000482,2]
[357148337,1743795039277,-386.87,0.00048235,2]
[357148338,1743795039287,-745.77811535,0.00048319,10]
[357148339,1743795039296,-1000.0,0.00048336,2]
[357148340,1743795039307,-200.0,0.00048336,2]
[357148341,1743795039316,-200.0,0.00048346,2]
[357148342,1743795039326,-150.0,0.00048499,2]
[357148343,1743795039335,-15977.22586734,0.000485,2]
[357148344,1743795039345,-1678.4855652,0.00048534,4]
[357148345,1743795039354,-210.99593837,0.00048766,82]
[357148346,1743795039368,-150.0,0.00048766,82]
[357148347,1743795039377,-150.0,0.00048766,82]
[357148348,1743795039388,-214.21597946,0.00048766,82]
[357148349,1743795039397,-500.0,0.00048766,82]
[357148350,1743795039407,-500.0,0.00048766,82]
[357148351,1743795039417,-500.0,0.00048766,82]
[357148352,1743795039429,-500.0,0.00048766,82]
[357148354,1743795039439,-519.10780453,0.00048766,82]
[357148355,1743795039449,-500.0,0.00048766,82]
[357148356,1743795039458,-500.0,0.00048766,82]
[357148357,1743795039468,-500.0,0.00048766,82]
[357148358,1743795039477,-500.0,0.00048766,82]
[357148359,1743795039488,-999.64803733,0.00048766,82]
[357148360,1743795039498,-3704.0,0.00048766,82]
[357148361,1743795039509,-3704.0,0.00048766,82]
[357148362,1743795039518,-3704.0,0.00048766,82]
[357148363,1743795039528,-3704.0,0.00048766,82]
[357148364,1743795039537,-3704.0,0.00048766,82]
[357148365,1743795039546,-3704.0,0.00048766,82]
[357148367,1743795039556,-3704.0,0.00048766,82]
[357148369,1743795039566,-3704.0,0.00048766,82]
[357148370,1743795039575,-3704.0,0.00048766,82]
[357148371,1743795039585,-3704.0,0.00048766,82]
[357148372,1743795039594,-3704.0,0.00048766,82]
[357148373,1743795039604,-3704.0,0.00048766,82]
[357148374,1743795039614,-3704.0,0.00048766,82]
[357148375,1743795039626,-3704.0,0.00048766,82]
[357148376,1743795039636,-3704.0,0.00048766,82]
[357148377,1743795039645,-3704.0,0.00048766,82]
[357148378,1743795039655,-3704.0,0.00048766,82]
[357148379,1743795039664,-3704.0,0.00048766,82]
[357148380,1743795039674,-3704.0,0.00048766,82]
[357148381,1743795039684,-3709.55609464,0.00048766,82]
[357148382,1743795039694,-150.0,0.00048766,82]
[357148383,1743795039704,-297.32248288,0.00048766,82]
[357148384,1743795039713,-154.408837,0.00048766,82]
[357148385,1743795039724,-500.0,0.00048766,82]
[357148386,1743795039733,-500.0,0.00048766,82]
[357148387,1743795039745,-500.0,0.00048766,82]
[357148388,1743795039755,-500.0,0.00048766,82]
[357148389,1743795039765,-500.0,0.00048766,82]
[357148390,1743795039775,-500.0,0.00048766,82]
[357148391,1743795039785,-500.0,0.00048766,82]
[357148392,1743795039795,-500.0,0.00048766,82]
[357148393,1743795039805,-500.0,0.00048766,82]
[357148394,1743795039815,-500.0,0.00048766,82]
[357148395,1743795039825,-500.0,0.00048766,82]
[357148396,1743795039835,-500.0,0.00048766,82]
[357148397,1743795039845,-500.0,0.00048766,82]
[357148398,1743795040004,-500.0,0.00048766,82]
[357148399,1743795040014,-500.0,0.00048766,82]
[357148400,1743795040023,-500.0,0.00048766,82]
[357148401,1743795040033,-500.0,0.00048766,82]
[357148402,1743795040043,-501.89748689,0.00048766,82]
[357148403,1743795040053,-645.991304,0.00048766,14]
[357148404,1743795040062,-645.991304,0.00048766,14]
[357148405,1743795040071,-500.0,0.00048767,120]
[357148406,1743795040081,-500.0,0.00048767,120]
[357148407,1743795040090,-1000.0,0.00049,2]
[357148408,1743795040099,-248.790419,0.00049,120]
[357148409,1743795040108,-475.9709,0.00049014,2]
[357148410,1743795040117,-444.6663,0.00049014,2]
[357148411,1743795040126,-2271.94683247,0.00049014,15]
[357148412,1743795040136,-500.0,0.00049041,120]
[357148413,1743795040145,-500.0,0.00049041,120]
[357148414,1743795040154,-500.0,0.00049095,120]
[357148415,1743795040164,-500.0,0.00049095,120]
[357148416,1743795040173,-500.0,0.00049095,120]
[357148417,1743795040184,-500.0,0.00049095,120]
[357148418,1743795040193,-500.0,0.00049095,120]
[357148419,1743795040202,-500.0,0.00049095,120]
[357148420,1743795040212,-437.72,0.00049095,120]
[357148421,1743795040221,-500.0,0.00049095,120]
[357148422,1743795040230,-500.0,0.00049095,120]
[357148423,1743795040239,-500.0,0.00049095,120]
[357148424,1743795040248,-500.0,0.00049095,120]
[357148425,1743795040257,-500.0,0.00049095,120]
[357148426,1743795040266,-500.0,0.00049095,120]
[357148427,1743795040275,-500.0,0.00049095,120]
[357148428,1743795040284,-500.0,0.00049095,120]
[357148429,1743795040294,-500.0,0.00049095,120]
[357148430,1743795040303,-500.0,0.00049095,120]
[357148431,1743795040312,-500.0,0.00049095,120]
[357148432,1743795040321,-500.0,0.00049095,120]
[357148433,1743795040330,-500.0,0.00049095,120]
[357148434,1743795040339,-500.0,0.00049095,120]
[357148435,1743795040348,-500.0,0.00049095,120]
[357148436,1743795040357,-500.0,0.00049095,120]
[357148437,1743795040366,-500.0,0.00049095,120]
[357148438,1743795040376,-500.0,0.00049095,120]
[357148439,1743795040385,-500.0,0.00049095,120]
[357148440,1743795040394,-500.0,0.00049095,120]
[357148441,1743795040404,-500.0,0.00049095,120]
[357148442,1743795040413,-500.0,0.00049095,120]
[357148443,1743795040422,-500.0,0.00049095,120]
[357148444,1743795040431,-500.0,0.00049095,120]
[357148445,1743795040441,-500.0,0.00049095,120]
[357148446,1743795040450,-500.0,0.00049095,120]
[357148447,1743795040459,-500.0,0.00049095,120]
[357148448,1743795040469,-500.0,0.00049095,120]
[357148449,1743795040478,-500.0,0.00049095,120]
[357148450,1743795040488,-500.0,0.00049095,120]
[357148451,1743795040497,-500.0,0.00049095,120]
[357148452,1743795040509,-500.0,0.00049095,120]
[357148453,1743795040518,-500.0,0.00049095,120]
[357148454,1743795040527,-500.0,0.00049095,120]
[357148455,1743795040538,-500.0,0.00049095,120]
[357148456,1743795040547,-500.0,0.00049095,120]
[357148457,1743795040556,-500.0,0.00049095,120]
[357148458,1743795040566,-500.0,0.00049095,120]
[357148459,1743795040575,-500.0,0.00049095,120]
[357148460,1743795040585,-266.43,0.00049095,120]
[357148461,1743795040594,-150.57,0.00049104,120]
[357148462,1743795040604,-603.55,0.00049114,120]
[357148463,1743795040613,-500.0,0.00049114,120]
[357148464,1743795040623,-1402.72,0.00049114,120]
[357148465,1743795040633,-516.29535497,0.00049114,10]
[357148466,1743795040643,-500.0,0.00049114,120]
[357148467,1743795040652,-500.0,0.00049114,120]
[357148468,1743795040661,-500.0,0.00049114,120]
[357148469,1743795040671,-500.0,0.00049114,120]
[357148470,1743795040680,-500.0,0.00049114,120]
[357148471,1743795040690,-585.59,0.00049114,120]
[357148472,1743795040699,-500.0,0.00049114,120]
[357148473,1743795040709,-687.55,0.00049114,120]
[357148474,1743795040719,-500.0,0.00049114,120]
[357148475,1743795040728,-500.0,0.00049114,120]
[357148476,1743795040739,-500.0,0.00049114,120]
[357148477,1743795040748,-500.0,0.00049114,120]
[357148478,1743795040758,-500.0,0.00049114,30]
[357148479,1743795040768,-500.0,0.00049114,120]
[357148480,1743795040778,-500.0,0.00049114,120]
[357148481,1743795040787,-500.0,0.00049114,120]
[357148482,1743795040797,-506.01807718,0.00049114,120]
[357148483,1743795040807,-443.31980339,0.00049114,120]
[357148484,1743795040817,-500.0,0.00049114,120]
[357148485,1743795040830,-500.0,0.00049114,120]
[357148486,1743795040840,-525.8659374,0.00049114,120]
[357148487,1743795040849,-571.02,0.00049114,120]
[357148488,1743795040859,-604.06,0.00049114,120]
[357148489,1743795040870,-500.0,0.00049114,120]
[357148490,1743795040879,-399.52699011,0.00049114,120]
[357148491,1743795040889,-493.94385711,0.00049114,120]
[357148492,1743795040898,-500.0,0.00049114,120]
[357148493,1743795040908,-500.0,0.00049114,120]
[357148494,1743795040919,-1300.73,0.00049114,10]
[357148495,1743795040929,-627.68,0.00049114,120]
[357148496,1743795040938,-500.0,0.00049114,30]
[357148497,1743795040948,-500.0,0.00049114,12]
[357148498,1743795040957,-2000.0,0.00049114,2]
[357148499,1743795040967,-500.0,0.00049114,120]
[357148500,1743795040977,-500.0,0.00049114,120]
[357148501,1743795040987,-500.0,0.00049114,120]
[357148502,1743795040997,-500.0,0.00049114,120]
[357148503,1743795041007,-500.0,0.00049114,120]
[357148504,1743795041016,-500.0,0.00049114,30]
[357148505,1743795041026,-500.0,0.00049114,120]
[357148506,1743795041035,-180.20171913,0.00049114,120]
[357148507,1743795041045,-718.11,0.00049114,120]
[357148508,1743795041054,-500.0,0.00049114,120]
[357148509,1743795041064,-500.0,0.00049114,7]
[357148510,1743795041074,-500.0,0.00049114,120]
[357148511,1743795041083,-2276.02,0.00049114,2]
[357148512,1743795041093,-678.96,0.00049114,120]
[357148513,1743795041102,-500.0,0.00049114,120]
[357148514,1743795041111,-566.13,0.00049114,120]
[357148515,1743795041120,-541.93,0.00049114,120]
[357148516,1743795041131,-500.0,0.00049114,120]
[357148517,1743795041140,-500.0,0.00049114,120]
[357148518,1743795041150,-500.0,0.00049114,120]
[357148519,1743795041159,-500.0,0.00049114,120]
[357148520,1743795041168,-500.0,0.00049114,120]
[357148521,1743795041178,-415.96166544,0.00049114,120]
[357148522,1743795041188,-500.0,0.00049114,120]
[357148523,1743795041198,-500.0,0.00049114,120]
[357148524,1743795041207,-500.0,0.00049114,10]
[357148525,1743795041217,-500.0,0.00049114,120]
[357148526,1743795041227,-543.01,0.00049114,120]
[357148527,1743795041239,-500.0,0.00049114,120]
[357148528,1743795041248,-500.0,0.00049114,120]
[357148529,1743795041258,-500.0,0.00049114,120]
[357148530,1743795041267,-500.0,0.00049114,120]
[357148531,1743795041277,-500.0,0.00049114,120]
[357148532,1743795041286,-500.0,0.00049114,120]
[357148533,1743795041296,-500.0,0.00049114,120]
[357148534,1743795041306,-1422.75,0.00049114,120]
[357148535,1743795041315,-500.0,0.00049114,120]
[357148536,1743795041325,-500.0,0.00049114,120]
[357148537,1743795041335,-186.04296462,0.00049114,120]
[357148538,1743795041344,-500.0,0.00049114,120]
[357148539,1743795041353,-1497.88,0.00049114,120]
[357148540,1743795041363,-709.1,0.00049114,120]
[357148541,1743795041372,-1790.27,0.00049114,7]
[357148542,1743795041382,-848.5,0.00049114,120]
[357148543,1743795041391,-633.33,0.00049114,120]
[357148544,1743795041401,-500.0,0.00049114,120]
[357148545,1743795041410,-500.0,0.00049114,120]
[357148546,1743795041420,-500.0,0.00049114,120]
[357148547,1743795041430,-500.0,0.00049114,120]
[357148548,1743795041439,-689.58,0.00049114,120]
[357148549,1743795041449,-925.52,0.00049114,120]
[357148550,1743795041458,-1000.35,0.00049114,120]
[357148551,1743795041468,-500.0,0.00049114,120]
[357148552,1743795041477,-500.0,0.00049114,120]
[357148553,1743795041487,-500.0,0.00049114,2]
[357148554,1743795041498,-3651.17,0.00049114,120]
[357148555,1743795041508,-677.84,0.00049114,120]
[357148556,1743795041517,-602.07,0.00049114,120]
[357148557,1743795041527,-764.91,0.00049114,120]
[357148558,1743795041536,-500.0,0.00049114,120]
[357148559,1743795041546,-500.0,0.00049114,120]
[357148560,1743795041556,-500.0,0.00049114,120]
[357148561,1743795041566,-500.0,0.00049114,120]
[357148562,1743795041576,-500.0,0.00049114,120]
[357148563,1743795041586,-756.51,0.00049114,120]
[357148564,1743795041596,-1921.05,0.00049114,120]
[357148565,1743795041606,-500.0,0.00049114,2]
[357148566,1743795041616,-500.0,0.00049114,2]
[357148567,1743795041627,-500.0,0.00049114,100]
[357148568,1743795041637,-500.0,0.00049114,120]
[357148569,1743795041647,-500.0,0.00049114,120]
[357148570,1743795041657,-500.0,0.00049114,2]
[357148571,1743795041667,-500.0,0.00049114,120]
[357148572,1743795041678,-500.0,0.00049114,120]
[357148573,1743795041687,-2271.94683247,0.00049146,15]
[357148574,1743795041696,-150.57,0.0004919,120]
[357148575,1743795041706,-154.87,0.000492,45]
[357148576,1743795041715,-154.87,0.000492,45]
[357148577,1743795041725,-198941.22365963,0.000492,60]
[357148578,1743795041849,-974.87783934,0.000492,60]
[357148579,1743795041863,-420.87,0.000492,60]
[357148580,1743795041915,-10543.15591333,0.000492,60]
[357148581,1743795042208,-2032.7725877,0.000492,60]
[357148582,1743795042218,-361.1274123,0.000492,14]
[357148583,1743795042229,-1006.2,0.000492,14]
[357148584,1743795042242,-2521.33569465,0.000492,14]
[357148604,1743795043456,-455.04074549,0.00046959,120]
[357148608,1743795045750,-4219.215,0.000199,2]
[357148609,1743795046022,-6175.10585506,0.000199,2]
[357148610,1743795046032,-208.7591093,0.000199,2]
[357148611,1743795046043,-44.95925451,0.00046959,120]
[357148612,1743795046052,-480.68968579,0.00046959,120]
[357148613,1743795046062,-3953.0,0.00047015,2]
[357148614,1743795046071,-500.0,0.00049114,120]
[357148615,1743795046081,-712.62689305,0.000492,14]
[357148616,1743795046090,-4775.05920229,0.00049215,2]
[357148619,1743795942124,-150.0,0.00034548,10]
[357148620,1743795942148,-163.2,0.00036476,2]
[357148621,1743795942168,-36.8259031,0.00037,2]
[357148622,1743795953076,-213.1740969,0.00037,2]
[357148623,1743795953098,-250.0,0.0003745,2]
[357148624,1743795953119,-318.9427588,0.00038,12]
[357148625,1743796027102,-680.84616495,0.00026849,2]
[357148626,1743796027124,-133.10503695,0.00026849,2]